bitfinex-derivatives/quotes_SOLF0:USTF0_20250823
["timestamp","ask_amount","ask_price","bid_price","bid_amount"]
[1755922303465,2.63,198.86,198.84,8.93689916]
[1755922303764,2.63,198.86,198.83,0.41]
[1755922303965,2.63,198.86,198.84,8.93734609]
[1755922304159,2.63,198.86,198.83,0.41]
[1755922304358,2.63,198.86,198.84,4.38670084]
[1755922304663,2.63,198.86,198.83,0.41]
[1755922304862,2.63,198.86,198.84,4.38667717]
[1755922305062,5.0305,198.87,198.83,0.41]
[1755922305264,2.63,198.86,198.84,4.38666426]
[1755922305458,5.0309,198.86,198.83,0.41]
[1755922305764,7.6609,198.86,198.84,6.14210516]
[1755922305960,5.0309,198.86,198.85,4.38688408]
[1755922306164,5.0309,198.86,198.83,0.41]
[1755922306365,7.6609,198.86,198.84,4.38686772]
[1755922306666,5.0309,198.86,198.85,4.38715093]
[1755922307265,7.6609,198.86,198.85,4.38715093]
[1755922307466,2.63,198.9,198.87,0.41]
[1755922307660,2.63,198.9,198.87,0.08]
[1755922307961,2.67370866,198.91,198.87,0.08]
[1755922308156,2.63,198.89,198.87,0.08]
[1755922308555,2.63,198.89,198.8,8.21768323]
[1755922308756,2.63,198.89,198.81,6.14224194]
[1755922308964,2.63,198.89,198.8,8.21768323]
[1755922308965,2.63,198.89,198.82,6.14223935]
[1755922309161,29.3149728,198.99,198.83,10.31861215]
[1755922309360,2.63,198.97,198.84,130.14223935]
[1755922309561,2.63,198.97,198.85,6.14223935]
[1755922309768,2.63,198.92,198.86,6.14223935]
[1755922309962,2.63,198.92,198.87,6.14223935]
[1755922310266,2.63,198.89,198.8,123.98]
[1755922310466,2.63,198.89,198.81,6.14372288]
[1755922310665,2.63,198.89,198.82,6.14372288]
[1755922310968,2.63,198.89,198.83,6.14372288]
[1755922311159,7.6605,198.87,198.84,6.14372288]
[1755922311367,5.0305,198.87,198.85,6.14372288]
[1755922311565,5.0305,198.87,198.86,4.38873049]
[1755922311867,5.031,198.85,198.8,123.98]
[1755922312062,7.661,198.85,198.81,6.13096888]
[1755922312263,7.661,198.85,198.82,6.13096888]
[1755922312467,7.661,198.85,198.83,6.13096888]
[1755922312764,7.661,198.85,198.84,6.13096888]
[1755922314163,5.0304,198.88,198.84,6.13096888]
[1755922314363,2.63,198.87,198.85,6.13096888]
[1755922314668,2.63,198.87,198.8,123.98]
[1755922314869,2.63,198.87,198.81,6.14067325]
[1755922315167,2.63,198.87,198.82,6.14067325]
[1755922315366,2.63,198.87,198.83,6.14067325]
[1755922315668,2.63,198.87,198.84,6.14067325]
[1755922315870,2.63,198.87,198.85,6.14067325]
[1755922316167,2.63,198.87,198.86,1.75885924]
[1755922316873,5.0304,198.88,198.86,1.75885924]
[1755922317070,5.0304,198.88,198.87,6.14159112]
[1755922317270,5.0304,198.88,198.87,4.38273188]
[1755922317466,5.0304,198.88,198.87,6.14200974]
[1755922317772,7.6604,198.88,198.87,6.14200974]
[1755922318268,7.6597,198.9,198.87,6.14200974]
[1755922318469,7.6597,198.9,198.88,6.14200974]
[1755922318771,7.6597,198.9,198.8,123.98]
[1755922318968,7.6597,198.9,198.81,6.14190662]
[1755922319165,7.6597,198.9,198.82,6.14190662]
[1755922319367,7.6597,198.9,198.83,6.14190662]
[1755922319567,7.6597,198.9,198.84,6.14190662]
[1755922319771,2.63,198.89,198.85,6.14190662]
[1755922319968,2.63,198.88,198.86,6.14190662]
[1755922320172,2.63,198.88,198.87,6.14190662]
[1755922320571,2.63,198.88,198.77,137.20395822]
[1755922320870,2.63,198.88,198.78,127.62222241]
[1755922321065,5.0312,198.85,198.79,6.14222241]
[1755922321373,2.63,198.84,198.8,6.14222241]
[1755922321569,2.63,198.84,198.81,6.14222241]
[1755922321766,2.63,198.84,198.82,6.14222241]
[1755922321973,2.63,198.84,198.83,6.14222241]
[1755922322375,2.63,198.84,198.83,4.38294391]
[1755922322672,2.63,198.84,198.83,6.14147661]
[1755922323769,2.63,198.84,198.83,1.88294391]
[1755922323965,2.87,198.83,198.77,131.62358587]
[1755922324271,2.87,198.84,198.78,1.75981323]
[1755922324579,5.0324,198.8,198.79,1.323e-05]
[1755922324765,25.1623,198.8,198.73,123.98]
[1755922324966,2.87,198.79,198.72,1.9]
[1755922325274,5.0338,198.74,198.68,1.9]
[1755922325573,2.87,198.76,198.68,1.9]
[1755922328472,5.0335,198.75,198.68,1.9]
[1755922329274,2.87,198.74,198.65,130.936]
[1755922329580,2.87,198.74,198.66,1.9]
[1755922330984,7.903,198.78,198.68,1.9]
[1755922332282,7.903,198.78,198.69,1.9]
[1755922333180,7.903,198.78,198.69,125.92]
[1755922333381,2.87,198.75,198.69,125.92]
[1755922335082,7.9037,198.75,198.69,125.92]
[1755922336178,5.034,198.74,198.69,124.02]
[1755922336384,29.3414728,198.77,198.69,121.52]
[1755922336385,2.87,198.72,198.69,121.52]
[1755922336578,2.87,198.76,198.69,121.52]
[1755922336984,7.9034,198.76,198.69,123.42]
[1755922338484,5.0328,198.78,198.7,1.9]
[1755922343588,2.87,198.77,198.7,1.9]
[1755922343989,7.9023,198.8,198.7,1.9]
[1755922345588,2.87,198.8,198.71,1.89]
[1755922346592,2.87,198.8,198.71,6.9243]
[1755922346992,2.87,198.8,198.72,6.9241]
[1755922347192,2.87,198.8,198.73,1.89]
[1755922348692,2.87,198.8,198.74,1.89]
[1755922349486,2.87,198.8,198.74,6.9236]
[1755922349692,5.0313,198.84,198.74,5.0336]
[1755922349892,2.87,198.84,198.76,1.89]
[1755922351191,2.87,198.84,198.76,6.0663728]
[1755922351494,2.87,198.84,198.76,11.0994728]
[1755922352693,2.87,198.84,198.77,1.89]
[1755922353090,2.87,198.84,198.76,4.1763728]
[1755922353296,2.63,198.87,198.78,1.89]
[1755922354391,2.63,198.87,198.79,5.0323]
[1755922354698,2.63,198.91,198.8,1.89]
[1755922355092,2.63,198.91,198.83,1.89]
[1755922355294,2.63,198.91,198.77,128.1763728]
[1755922355494,2.63,198.89,198.78,4.16542525]
[1755922355794,2.63,198.89,198.78,1.89]
[1755922357392,25.1482,198.91,198.78,1.89]
[1755922357695,2.63,198.9,198.78,1.89]
[1755922358497,5.0303,198.88,198.78,1.89]
[1755922358698,2.63,198.87,198.78,1.89]
[1755922362203,7.6607,198.87,198.78,1.89]
[1755922362902,2.63,198.86,198.78,125.85]
[1755922364402,7.66,198.89,198.79,1.89]
[1755922365902,7.66,198.89,198.78,132.5588728]
[1755922367303,7.66,198.89,198.79,5.0323]
[1755922368007,2.63,198.89,198.81,4.1763728]
[1755922369609,2.63,198.89,198.82,5.0315]
[1755922374808,2.63,198.89,198.83,5.0313]
[1755922376010,2.63,198.93,198.84,4.1763728]
[1755922376217,2.63,198.93,198.85,123.92]
[1755922377513,2.63,198.93,198.85,128.9508]
[1755922380210,2.63,198.93,198.83,5.0314]
[1755922380413,2.63,198.93,198.83,121.4]
[1755922381113,2.63,198.93,198.82,123.9]
[1755922381516,2.63,198.9,198.82,123.9]
[1755922382515,2.63,198.9,198.82,128.9317]
[1755922383218,2.63,198.9,198.82,133.1080728]
[1755922383916,2.72,198.94,198.82,128.0763728]
[1755922384220,2.72,198.94,198.85,4.1763728]
[1755922385112,2.72,198.94,198.85,9.2071728]
[1755922385412,2.72,198.94,198.85,4.1763728]
[1755922386522,2.72,198.94,198.86,5.0305]
[1755922387423,2.72,198.94,198.85,4.1763728]
[1755922387824,2.72,198.94,198.86,123.88]
[1755922388228,2.72,198.94,198.85,123.88]
[1755922393931,2.72,198.94,198.85,128.8908]
[1755922395336,2.72,198.94,198.86,9.2068728]
[1755922398932,2.72,198.97,198.87,4.18374509]
[1755922399135,2.72,198.97,198.86,3.6063728]
[1755922399335,2.72,198.97,198.87,4.18332106]
[1755922399530,2.72,199.0,198.89,4.1763728]
[1755922399736,2.72,199.0,198.9,4.18189557]
[1755922399934,2.72,199.0,198.89,4.1763728]
[1755922400136,2.72,199.0,198.9,4.18187444]
[1755922400436,2.72,199.0,198.91,5.0292]
[1755922402132,2.72,198.99,198.89,9.2062728]
[1755922402327,2.72,198.99,198.89,4.1763728]
[1755922403035,2.72,198.99,198.91,5.0293]
[1755922405630,2.72,198.99,198.92,5.029]
[1755922408940,2.72,198.99,198.92,9.2053728]
[1755922417150,2.72,198.99,198.92,5.029]
[1755922418650,5.0271,199.01,198.92,5.029]
[1755922419049,7.6971,199.01,198.92,5.029]
[1755922420246,5.0271,199.01,198.93,5.0288]
[1755922420450,2.67,199.0,198.93,5.0288]
[1755922424954,2.67,199.0,198.93,9.2051728]
[1755922426155,2.67,199.0,198.93,5.0288]
[1755922426451,2.67,199.0,198.92,123.76]
[1755922427459,2.67,199.0,198.93,5.0289]
[1755922428555,2.67,199.03,198.95,5.0284]
[1755922431265,2.67,199.03,198.94,25.1437]
[1755922431467,2.67,199.08,198.96,4.1763728]
[1755922431666,2.67,199.08,199.0,4.1763728]
[1755922432964,2.67,199.08,198.98,123.74]
[1755922434069,2.67,199.06,198.98,128.7677]
[1755922434369,5.0259,199.05,198.96,4.1763728]
[1755922434569,25.1236,199.1,198.97,123.72]
[1755922434570,2.67,199.04,198.97,123.72]
[1755922435569,2.67,199.04,198.97,128.7477]
[1755922436965,2.67,199.04,198.98,123.72]
[1755922439176,2.67,199.08,199.0,5.0272]
[1755922440170,2.67,199.07,198.92,25.1461]
[1755922440473,5.33965156,199.02,198.95,2.66965156]
[1755922442265,2.67,199.02,198.94,123.7]
[1755922442973,2.67,199.02,198.94,128.7285]
[1755922446178,2.67,199.02,198.95,123.68]
[1755922446375,7.6969,199.02,198.95,123.68]
[1755922446580,2.67,199.02,198.94,121.18]
[1755922447078,5.0274,199.0,198.94,121.18]
[1755922447277,2.85,198.98,198.94,121.18]
[1755922447880,7.8777,198.99,198.93,123.68]
[1755922450180,7.8777,198.99,198.91,2.5293]
[1755922450381,7.8777,198.99,198.91,126.1893]
[1755922450879,2.85,198.99,198.91,126.1893]
[1755922451080,2.85,198.99,198.91,2.5293]
[1755922451275,2.85,198.99,198.92,123.66]
[1755922452385,2.85,198.99,198.93,4.25047514]
[1755922452584,2.85,198.99,198.92,123.66]
[1755922452884,2.85,198.99,198.93,4.25047514]
[1755922453080,2.85,198.99,198.92,123.66]
[1755922453278,2.85,198.99,198.93,4.25202654]
[1755922453476,2.85,198.99,198.92,123.66]
[1755922453681,2.85,198.99,198.93,4.25252508]
[1755922453881,2.85,198.99,198.92,123.66]
[1755922454084,2.85,198.99,198.93,4.25245345]
[1755922454381,2.85,198.99,198.92,123.66]
[1755922454582,2.85,198.99,198.93,4.25244818]
[1755922454778,2.85,198.99,198.92,123.66]
[1755922454981,2.85,198.99,198.93,4.25253232]
[1755922455180,2.85,198.99,198.91,2.5293]
[1755922455380,2.85,198.99,198.92,127.91252518]
[1755922455583,2.85,198.99,198.93,4.25252518]
[1755922455782,2.85,198.99,198.92,123.66]
[1755922455982,2.85,198.99,198.93,4.25252371]
[1755922456184,2.85,198.99,198.92,123.66]
[1755922456385,2.85,198.99,198.93,4.25248449]
[1755922456587,2.85,198.99,198.92,123.66]
[1755922456885,2.85,198.99,198.93,4.25257232]
[1755922457086,2.85,198.99,198.92,123.66]
[1755922457280,2.85,198.99,198.93,4.25276975]
[1755922457479,2.85,198.99,198.92,123.66]
[1755922457685,2.85,198.99,198.93,4.25280146]
[1755922457881,2.85,198.99,198.92,123.66]
[1755922458088,2.85,198.99,198.93,4.25280146]
[1755922458284,2.85,198.99,198.92,123.66]
[1755922458483,7.8776,198.99,198.93,4.25276132]
[1755922458783,7.8776,198.99,198.92,123.66]
[1755922458980,7.8776,198.99,198.93,4.2527934]
[1755922459189,7.8776,198.99,198.92,123.66]
[1755922459789,7.8776,198.99,198.91,2.5293]
[1755922459991,7.8776,198.99,198.92,127.91191197]
[1755922460188,7.8776,198.99,198.92,123.29]
[1755922460885,7.8776,198.99,198.91,2.5293]
[1755922461082,7.8776,198.99,198.92,127.91165589]
[1755922461288,7.8776,198.99,198.92,123.66]
[1755922462090,7.8776,198.99,198.93,4.25181827]
[1755922462293,7.8776,198.99,198.93,123.66]
[1755922463190,7.8776,198.99,198.93,123.29]
[1755922464296,10.54821888,198.99,198.93,123.29]
[1755922465193,10.54821888,198.99,198.93,123.01]
[1755922465692,36.44000448,199.12,198.93,123.01]
[1755922465693,7.69751888,199.02,198.94,6.92153574]
[1755922465898,2.85,199.03,198.96,2.67061888]
[1755922466089,2.85,199.03,198.97,4.60423669]
[1755922466290,2.85,199.03,198.98,4.60423669]
[1755922466491,2.85,199.03,198.96,2.67061888]
[1755922466691,2.85,199.03,198.97,4.60458068]
[1755922466891,2.85,199.03,198.98,4.60458068]
[1755922467092,2.85,199.03,198.96,2.67061888]
[1755922467298,2.85,199.03,198.97,4.60458068]
[1755922467497,2.85,199.03,198.98,4.60489864]
[1755922467697,2.85,199.03,198.99,4.604897]
[1755922467897,2.85,199.03,198.96,2.67061888]
[1755922468192,2.85,199.03,198.97,4.604897]
[1755922468399,2.85,199.03,198.98,4.604897]
[1755922468598,2.85,199.03,198.99,4.604897]
[1755922468797,2.85,199.03,198.96,2.67061888]
[1755922468998,2.85,199.03,198.97,4.60504434]
[1755922469200,2.85,199.03,198.98,4.60504434]
[1755922469496,2.85,199.02,198.99,4.60504434]
[1755922469697,2.85,199.02,198.96,2.67061888]
[1755922469892,2.85,199.01,198.97,4.60498453]
[1755922470094,2.85,199.01,198.98,4.60498453]
[1755922470289,2.85,199.01,198.99,4.60498453]
[1755922470592,2.85,199.01,198.96,2.67061888]
[1755922470790,5.0266,199.03,198.97,4.60445674]
[1755922470991,7.8766,199.03,198.98,4.60445674]
[1755922471193,10.0485,199.12,198.93,123.01]
[1755922471194,2.85,199.09,199.02,2.67061888]
[1755922471393,2.85,199.09,199.03,4.60445674]
[1755922471594,2.85,199.09,199.04,2.67061888]
[1755922471997,2.85,199.09,199.05,4.67959528]
[1755922472197,7.8747,199.1,199.04,2.67061888]
[1755922472399,2.85,199.09,199.05,4.67858117]
[1755922472599,2.85,199.09,199.01,123.62]
[1755922472798,2.85,199.09,199.02,15.30414393]
[1755922472998,2.85,199.09,199.03,4.67819696]
[1755922473204,2.85,199.09,199.04,4.67819696]
[1755922473500,2.85,199.09,199.05,4.67819696]
[1755922473698,2.85,199.09,199.01,127.78784541]
[1755922473899,2.85,199.09,199.02,9.4198424]
[1755922474201,2.85,199.09,199.03,9.4198424]
[1755922474403,2.85,199.09,199.04,4.67620854]
[1755922474597,2.85,199.09,199.05,4.67620854]
[1755922474801,2.85,199.09,199.01,127.78784541]
[1755922474996,2.85,199.09,199.02,9.41724867]
[1755922475200,2.85,199.09,199.03,9.41724867]
[1755922475398,2.85,199.09,199.04,4.67487082]
[1755922475701,2.85,199.09,199.05,4.67487082]
[1755922475902,2.85,199.12,199.01,132.81454541]
[1755922476202,2.85,199.12,199.02,9.41486634]
[1755922476501,2.85,199.12,199.03,9.41486634]
[1755922476703,2.85,199.12,199.04,4.67263443]
[1755922477004,5.0246,199.11,199.05,4.67263443]
[1755922477203,5.0246,199.11,199.01,132.81454541]
[1755922477401,5.0246,199.11,199.02,9.41160957]
[1755922477598,5.0246,199.11,199.03,9.41160957]
[1755922477800,5.0246,199.11,199.04,4.67207148]
[1755922478093,5.0246,199.11,199.01,132.81454541]
[1755922478403,5.0246,199.11,199.02,9.41179613]
[1755922478603,5.0246,199.11,199.03,4.67216409]
[1755922478805,5.0246,199.11,199.04,4.67216409]
[1755922479104,5.0246,199.11,199.01,132.81454541]
[1755922479305,5.0246,199.11,199.02,9.41021568]
[1755922479505,5.0246,199.11,199.03,4.67137953]
[1755922479700,5.0246,199.11,199.04,4.67137953]
[1755922479897,5.0246,199.11,199.01,132.81454541]
[1755922480101,5.0246,199.11,199.02,9.40871892]
[1755922480397,5.0246,199.11,199.03,4.67063652]
[1755922480600,5.0246,199.11,199.01,132.81454541]
[1755922480793,5.0246,199.11,199.02,9.4069447]
[1755922480995,5.0246,199.11,199.03,9.40641508]
[1755922481201,5.0246,199.11,199.04,4.66975577]
[1755922481403,5.0246,199.11,199.03,5.0264]
[1755922481603,5.0246,199.11,199.04,4.66821988]
[1755922481804,5.0246,199.11,199.03,5.0264]
[1755922482003,5.0246,199.11,199.04,4.66821867]
[1755922482200,5.0246,199.11,199.03,5.0264]
[1755922482409,5.0246,199.11,199.04,4.66737206]
[1755922482605,5.0246,199.11,199.03,5.0264]
[1755922482805,5.0246,199.11,199.04,4.66737206]
[1755922483007,5.0246,199.11,199.03,5.0264]
[1755922483204,5.0246,199.11,199.04,4.66737206]
[1755922483403,5.0246,199.11,199.03,5.0264]
[1755922483598,5.0246,199.11,199.04,4.66649564]
[1755922483800,5.0246,199.11,199.03,5.0264]
[1755922484107,5.0246,199.11,199.04,4.66649564]
[1755922484407,5.0246,199.11,199.03,5.0264]
[1755922484607,5.0246,199.11,199.04,4.66573028]
[1755922484907,5.0246,199.11,199.03,5.0264]
[1755922485209,5.0246,199.11,199.04,4.66573028]
[1755922485410,5.0246,199.11,199.03,5.0264]
[1755922485705,5.0246,199.11,199.04,4.66528358]
[1755922485909,5.0246,199.11,199.03,5.0264]
[1755922486209,5.0246,199.11,199.04,4.66528358]
[1755922486509,5.0246,199.11,199.03,5.0264]
[1755922486710,5.0246,199.11,199.04,4.68664224]
[1755922486910,5.0246,199.11,199.03,5.0264]
[1755922487109,5.0246,199.11,199.04,4.68655378]
[1755922487310,5.0246,199.11,199.03,128.5664]
[1755922487608,5.0246,199.11,199.04,4.68591618]
[1755922487804,5.0246,199.11,199.04,4.16784541]
[1755922488811,2.85,199.1,199.04,4.16784541]
[1755922491715,2.85,199.09,199.05,4.6825034]
[1755922491915,2.85,199.12,199.06,4.68193133]
[1755922492211,2.85,199.12,199.04,4.16784541]
[1755922492413,2.85,199.12,199.05,4.68133861]
[1755922492615,2.85,199.12,199.06,4.68133861]
[1755922492914,2.85,199.12,199.04,4.16784541]
[1755922493206,2.85,199.12,199.05,4.68121991]
[1755922493406,7.8744,199.12,199.04,4.16784541]
[1755922493607,2.85,199.11,199.03,123.52]
[1755922494111,2.85,199.19,199.05,4.16784541]
[1755922494305,2.66692217,199.11,199.0,137.61230286]
[1755922494510,2.85,199.08,199.01,13.85812271]
[1755922494712,2.85,199.08,199.02,9.42424459]
[1755922495014,2.85,199.17,199.03,4.68174078]
[1755922495213,2.85,199.09,199.04,4.68174078]
[1755922495415,2.85,199.08,199.03,2.66692217]
[1755922495605,2.85,199.08,199.04,4.68170334]
[1755922495810,2.85,199.08,199.03,2.66692217]
[1755922496003,2.85,199.08,199.04,4.68172772]
[1755922496210,2.85,199.08,199.03,2.66692217]
[1755922496415,2.85,199.08,199.04,4.68172943]
[1755922496612,0.87422908,199.18,199.07,2.66692217]
[1755922496817,2.85,199.21,199.14,2.66692217]
[1755922498320,2.85,199.21,199.11,4.16367889]
[1755922498520,7.8719,199.21,199.12,4.67064645]
[1755922498708,7.8719,199.21,199.11,4.16367889]
[1755922498916,7.8719,199.21,199.12,4.67064645]
[1755922499112,7.8719,199.21,199.11,4.16367889]
[1755922499318,7.8719,199.21,199.12,4.67086888]
[1755922499519,7.8719,199.21,199.11,4.16367889]
[1755922499714,5.0224,199.19,199.12,4.66894559]
[1755922500017,5.0224,199.19,199.09,4.16367889]
[1755922500214,5.0229,199.18,199.1,4.66937806]
[1755922500418,2.85,199.17,199.08,4.16367889]
[1755922500613,2.85,199.17,199.09,4.66996566]
[1755922500813,2.85,199.17,199.1,4.66996566]
[1755922501016,2.85,199.17,199.08,4.16367889]
[1755922501217,2.85,199.17,199.09,9.40504945]
[1755922501417,2.85,199.17,199.1,4.67087694]
[1755922501617,2.85,199.15,199.08,4.16367889]
[1755922501812,2.85,199.15,199.09,4.67174903]
[1755922502120,2.85,199.12,199.04,135.31130063]
[1755922502416,2.85,199.12,199.05,4.67112696]
[1755922502617,7.8744,199.12,199.06,9.40586705]
[1755922502819,5.0244,199.12,199.07,4.67149469]
[1755922503018,2.85,199.09,199.08,4.67149469]
[1755922503219,7.8749,199.09,199.01,123.76]
[1755922503420,2.69,199.08,199.01,123.76]
[1755922503620,2.69,199.08,198.96,4.16367889]
[1755922503821,2.69,199.08,198.97,4.67785145]
[1755922504025,2.69,199.08,198.98,4.67785145]
[1755922504223,2.69,199.08,198.96,4.16367889]
[1755922504423,2.69,199.06,198.97,4.67895917]
[1755922504622,7.7159,199.06,198.98,4.67895917]
[1755922504816,7.7159,199.06,198.95,123.74]
[1755922505021,7.7159,199.06,198.96,9.42050014]
[1755922505224,7.7159,199.06,198.97,4.67877941]
[1755922505522,7.7159,199.06,198.98,4.67877941]
[1755922505726,7.7159,199.06,198.95,128.7682]
[1755922505927,7.7159,199.06,198.96,9.42250417]
[1755922506227,7.7159,199.06,198.97,9.42333451]
[1755922506526,7.7159,199.06,198.98,4.67977473]
[1755922506721,5.0262,199.05,198.95,128.7682]
[1755922506924,2.69,199.03,198.96,4.68087201]
[1755922507128,7.7166,199.03,198.89,125.36367889]
[1755922507329,2.69,199.02,198.9,11.19806738]
[1755922507627,2.69,199.02,198.91,14.45909801]
[1755922507825,2.69,199.02,198.92,9.42959801]
[1755922508027,2.69,199.02,198.93,4.68332856]
[1755922508228,2.69,199.02,198.94,4.68332856]
[1755922508429,2.69,199.02,198.91,5.0295]
[1755922508729,2.69,199.08,198.99,4.16367889]
[1755922508929,4.16367889,199.13,198.99,4.16367889]
[1755922508930,2.69,199.11,199.0,9.42765641]
[1755922509130,2.69,199.11,199.01,4.68295371]
[1755922509330,5.0247,199.1,199.02,4.68295371]
[1755922509530,5.0247,199.1,198.99,4.16367889]
[1755922509734,2.69,199.15,199.02,9.19037889]
[1755922510028,2.69,199.15,199.05,4.16367889]
[1755922510233,2.69,199.15,199.06,9.42297956]
[1755922510435,2.69,199.15,199.07,4.67999399]
[1755922510629,2.69,199.15,199.08,4.67999399]
[1755922510933,2.69,199.15,199.05,4.16367889]
[1755922511226,2.69,199.15,199.06,9.41647314]
[1755922511428,2.69,199.15,199.07,4.67672664]
[1755922511632,2.69,199.15,199.05,9.18957889]
[1755922511833,2.69,199.15,199.06,9.41698368]
[1755922512029,2.69,199.15,199.07,4.6769802]
[1755922512237,2.69,199.15,199.07,9.41665967]
[1755922512434,2.69,199.15,199.08,4.67622093]
[1755922512633,2.69,199.15,199.09,4.67622093]
[1755922512837,2.69,199.15,199.06,4.16367889]
[1755922513033,2.69,199.15,199.07,9.4145231]
[1755922513233,2.69,199.15,199.08,4.67575535]
[1755922513438,2.69,199.15,199.09,4.67575535]
[1755922513741,2.69,199.15,199.06,4.16367889]
[1755922513937,2.69,199.15,199.07,9.41554281]
[1755922514242,2.69,199.15,199.08,4.67626179]
[1755922514538,2.69,199.15,199.09,4.67626179]
[1755922514738,2.69,199.15,199.06,4.16367889]
[1755922514939,2.69,199.15,199.07,9.37562226]
[1755922515139,2.69,199.15,199.08,4.67693126]
[1755922515341,2.69,199.15,199.09,4.67693126]
[1755922515544,2.69,199.13,199.04,4.16367889]
[1755922515743,2.69,199.13,199.05,9.37750375]
[1755922516034,2.69,199.13,199.06,9.37826233]
[1755922516232,2.69,199.13,199.07,4.67786982]
[1755922516431,2.69,199.12,199.08,4.67786982]
[1755922516633,2.69,199.12,199.04,4.16367889]
[1755922516842,2.69,199.12,199.05,9.38679544]
[1755922517041,2.69,199.12,199.06,9.38679544]
[1755922517238,2.69,199.12,199.07,4.68657931]
[1755922517437,2.69,199.12,199.08,4.68657931]
[1755922517637,2.69,199.12,199.04,4.16367889]
[1755922517839,2.69,199.12,199.05,9.38774687]
[1755922518143,2.69,199.12,199.06,9.38743255]
[1755922518342,2.69,199.11,199.07,4.68706024]
[1755922518545,2.69,199.11,199.08,4.68706024]
[1755922518739,2.69,199.11,199.04,4.16367889]
[1755922518937,2.69,199.11,199.05,9.3873228]
[1755922519241,2.69,199.11,199.02,127.53909836]
[1755922519242,25.1173,199.15,199.06,2.18684851]
[1755922519445,2.69,199.14,199.02,127.53909836]
[1755922519745,7.7139,199.14,199.03,8.93120527]
[1755922520046,7.7139,199.14,199.04,4.70099519]
[1755922520345,7.7139,199.14,199.02,127.53909836]
[1755922520639,7.7141,199.13,199.03,8.93006591]
[1755922520942,7.7141,199.13,199.02,127.53909836]
[1755922521142,7.7141,199.13,199.03,8.93020537]
[1755922521338,7.7141,199.13,199.04,4.70036067]
[1755922521533,5.0234,199.15,199.05,10.69509172]
[1755922521743,5.0234,199.15,199.06,8.928714]
[1755922521944,5.0234,199.15,199.07,4.70036067]
[1755922522139,5.0234,199.15,199.04,4.16367889]
[1755922522444,2.69,199.17,199.07,4.16367889]
[1755922522639,2.69,199.17,199.08,4.69747064]
[1755922522840,2.69,199.17,199.09,4.69522343]
[1755922523145,2.69,199.17,199.07,4.16367889]
[1755922523345,2.69,199.17,199.08,8.91844993]
[1755922523549,2.69,199.17,199.09,4.69443652]
[1755922523740,2.69,199.17,199.07,4.16367889]
[1755922523939,2.69,199.17,199.08,4.69433364]
[1755922524139,2.69,199.17,199.07,4.16367889]
[1755922524444,2.69,199.17,199.08,4.69433364]
[1755922524651,2.69,199.17,199.07,4.16367889]
[1755922524947,5.0231,199.16,199.08,4.69421987]
[1755922525147,5.0231,199.16,199.07,4.16367889]
[1755922525343,5.0231,199.16,199.08,4.69427011]
[1755922525542,5.0231,199.16,199.07,4.16367889]
[1755922525852,5.0231,199.16,199.08,4.6937271]
[1755922526146,5.0231,199.16,199.07,4.16367889]
[1755922526345,5.0231,199.16,199.08,4.69412123]
[1755922526542,5.0231,199.16,199.07,4.16367889]
[1755922526748,5.0231,199.16,199.08,4.69384793]
[1755922526945,5.0231,199.16,199.07,4.16367889]
[1755922527144,5.0231,199.16,199.08,4.69369784]